fUST/lending_fUST_20260609
["ID","MTS","AMOUNT","RATE_DAILY","PERIOD"]
[424506932,1780981838000,-500.0,0.00016136,2]
[424506920,1780981838000,-2304.32754102,0.00016038,2]
[424506919,1780981838000,-444.0,0.00016025,2]
[424506930,1780981838000,-500.0,0.00016136,2]
[424506933,1780981838000,-153.55890262,0.00016136,2]
[424506935,1780981838000,-500.0,0.00016136,2]
[424506934,1780981838000,-346.44109738,0.00016136,2]
[424506931,1780981838000,-500.0,0.00016136,2]
[424506936,1780981838000,-245.29631252,0.00016136,2]
[424506927,1780981838000,-541.69650704,0.00016136,2]
[424506929,1780981838000,-12.5273231,0.00016136,2]
[424506921,1780981838000,-280.94101854,0.00016136,2]
[424506924,1780981838000,-500.0,0.00016136,2]
[424506925,1780981838000,-500.0,0.00016136,2]
[424506923,1780981838000,-500.0,0.00016136,2]
[424506922,1780981838000,-500.0,0.00016136,2]
[424506939,1780981840000,-254.70368748,0.00016136,2]
[424506943,1780981840000,-500.0,0.00016136,2]
[424506941,1780981840000,-32.18028267,0.00016136,2]
[424506942,1780981840000,-467.81971733,0.00016136,2]
[424506940,1780981840000,-500.0,0.00016136,2]
[424506945,1780981840000,-4048.75738615,0.00016138,2]
[424506946,1780981840000,-3092.11019631,0.00016138,2]
[424506944,1780981840000,-500.0,0.00016136,2]
[424506965,1780981843000,-500.0,0.00016438,2]
[424506966,1780981843000,-500.0,0.00016438,2]
[424506962,1780981843000,-1032.18,0.00016438,2]
[424506961,1780981843000,-500.0,0.00016438,2]
[424506967,1780981843000,-500.0,0.00016438,2]
[424506960,1780981843000,-500.0,0.00016438,2]
[424506959,1780981843000,-500.0,0.00016438,2]
[424506964,1780981843000,-500.0,0.00016438,2]
[424506955,1780981843000,-500.0,0.00016438,2]
[424506956,1780981843000,-500.0,0.00016438,2]
[424506951,1780981843000,-902.32624521,0.00016236,2]
[424506958,1780981843000,-448.36417177,0.00016438,2]
[424506957,1780981843000,-51.63582823,0.00016438,2]
[424506954,1780981843000,-500.0,0.00016438,2]
[424506953,1780981843000,-500.0,0.00016438,2]
[424506950,1780981843000,-205.92405286,0.00016236,2]
[424506952,1780981843000,-768.72334842,0.00016238,2]
[424506949,1780981843000,-294.07594714,0.00016236,2]
[424506947,1780981843000,-160.0,0.0001355,2]
[424506970,1780981843000,-365.20890085,0.00016438,2]
[424506963,1780981843000,-500.0,0.00016438,2]
[424506971,1780981843000,-383.58099836,0.00016438,2]
[424506948,1780981843000,-189.63,0.00016138,2]
[424506972,1780981843000,-500.0,0.00016438,2]
[424506991,1780981843000,-500.0,0.00016438,2]
[424506969,1780981843000,-134.79109915,0.00016438,2]
[424506992,1780981843000,-327.19537501,0.00016438,2]
[424506990,1780981843000,-500.0,0.00016438,2]
[424506989,1780981843000,-500.0,0.00016438,2]
[424506987,1780981843000,-500.0,0.00016438,2]
[424506982,1780981843000,-500.0,0.00016438,2]
[424506983,1780981843000,-500.0,0.00016438,2]
[424506986,1780981843000,-581.34,0.00016438,2]
[424506984,1780981843000,-500.0,0.00016438,2]
[424506985,1780981843000,-873.02,0.00016438,2]
[424506981,1780981843000,-500.0,0.00016438,2]
[424506980,1780981843000,-144.12148849,0.00016438,2]
[424506979,1780981843000,-355.87851151,0.00016438,2]
[424506976,1780981843000,-530.06,0.00016438,2]
[424506973,1780981843000,-500.0,0.00016438,2]
[424506978,1780981843000,-710.22,0.00016438,2]
[424506975,1780981843000,-1000.0,0.00016438,2]
[424506974,1780981843000,-500.0,0.00016438,2]
[424506977,1780981843000,-657.41,0.00016438,2]
[424506968,1780981843000,-500.0,0.00016438,2]
[424506988,1780981843000,-500.0,0.00016438,2]
[424507013,1780981846000,-500.0,0.00016438,2]
[424507017,1780981846000,-500.0,0.00016712,2]
[424507015,1780981846000,-600.0,0.00016561,2]
[424507023,1780981846000,-500.0,0.00016712,2]
[424507020,1780981846000,-500.0,0.00016712,2]
[424507019,1780981846000,-500.0,0.00016712,2]
[424507022,1780981846000,-1032.18,0.00016712,2]
[424507014,1780981846000,-500.0,0.00016438,2]
[424507018,1780981846000,-500.0,0.00016712,2]
[424507011,1780981846000,-572.33,0.00016438,2]
[424507001,1780981846000,-172.80462499,0.00016438,2]
[424507008,1780981846000,-160.0,0.00016438,2]
[424507006,1780981846000,-500.0,0.00016438,2]
[424507003,1780981846000,-500.0,0.00016438,2]
[424507010,1780981846000,-565.74,0.00016438,2]
[424507005,1780981846000,-500.0,0.00016438,2]
[424507007,1780981846000,-500.0,0.00016438,2]
[424507004,1780981846000,-500.0,0.00016438,2]
[424507002,1780981846000,-500.0,0.00016438,2]
[424507016,1780981846000,-500.0,0.00016712,2]
[424507009,1780981846000,-11075.85,0.00016438,2]
[424507021,1780981846000,-500.0,0.00016712,2]
[424507043,1780981846000,-500.0,0.00016712,2]
[424507024,1780981846000,-500.0,0.00016712,2]
[424507012,1780981846000,-944.43,0.00016438,2]
[424507046,1780981846000,-500.0,0.00016712,2]
[424507045,1780981846000,-500.0,0.00016712,2]
[424507041,1780981846000,-500.0,0.00016712,2]
[424507040,1780981846000,-500.0,0.00016712,2]
[424507037,1780981846000,-324.77153171,0.00016712,2]
[424507038,1780981846000,-873.02,0.00016712,2]
[424507036,1780981846000,-500.0,0.00016712,2]
[424507044,1780981846000,-500.0,0.00016712,2]
[424507042,1780981846000,-581.52,0.00016712,2]
[424507039,1780981846000,-581.34,0.00016712,2]
[424507033,1780981846000,-453.5833296,0.00016712,2]
[424507028,1780981846000,-328.43468565,0.00016712,2]
[424507027,1780981846000,-500.0,0.00016712,2]
[424507030,1780981846000,-530.06,0.00016712,2]
[424507032,1780981846000,-710.22,0.00016712,2]
[424507034,1780981846000,-500.0,0.00016712,2]
[424507026,1780981846000,-500.0,0.00016712,2]
[424507031,1780981846000,-657.41,0.00016712,2]
[424507029,1780981846000,-197.27710695,0.00016712,2]
[424507025,1780981846000,-500.0,0.00016712,2]
[424507035,1780981846000,-500.0,0.00016712,2]
[424507053,1780981847000,-2592.34306164,0.00016712,2]
[424507052,1780981847000,-8483.50693836,0.00016712,2]
[424507057,1780981847000,-329.59168671,0.00016712,2]
[424507054,1780981847000,-565.74,0.00016712,2]
[424507051,1780981847000,-285.98351931,0.00016712,2]
[424507047,1780981847000,-312.01851298,0.00016712,2]
[424507056,1780981847000,-944.43,0.00016712,2]
[424507048,1780981847000,-500.0,0.00016712,2]
[424507049,1780981847000,-500.0,0.00016712,2]
[424507069,1780981847000,-41.63030196,0.00016986,2]
[424507055,1780981847000,-572.33,0.00016712,2]
[424507059,1780981847000,-500.0,0.00016986,2]
[424507050,1780981847000,-500.0,0.00016712,2]
[424507061,1780981847000,-500.0,0.00016986,2]
[424507073,1780981847000,-143.27100751,0.00016986,2]
[424507072,1780981847000,-530.06,0.00016986,2]
[424507070,1780981847000,-458.36969804,0.00016986,2]
[424507068,1780981847000,-349.13973654,0.00016986,2]
[424507064,1780981847000,-500.0,0.00016986,2]
[424507067,1780981847000,-500.0,0.00016986,2]
[424507071,1780981847000,-500.0,0.00016986,2]
[424507065,1780981847000,-1032.18,0.00016986,2]
[424507063,1780981847000,-500.0,0.00016986,2]
[424507058,1780981847000,-177.29209532,0.00016712,2]
[424507066,1780981847000,-468.58040737,0.00016986,2]
[424507060,1780981847000,-500.0,0.00016986,2]
[424507062,1780981847000,-500.0,0.00016986,2]
[424507076,1780982453000,305.78141288,2.01e-05,2]
[424507078,1780982572000,-231.01565609,0.0001,7]
[424507079,1780982584000,-231.01565609,0.0001,7]
[424507080,1780982597000,-242.20094326,0.0001,7]
[424507081,1780982650000,-243.69698611,0.000118,5]
[424507082,1780982662000,-77.11484385,0.000118,5]
[424507083,1780982715000,-243.20928261,0.0001202,2]
[424507084,1780982728000,-114.06054372,0.0001202,2]
[424507085,1780982781000,-500.0,0.00012141,2]
[424507086,1780982793000,-500.0,0.00012141,2]
[424507087,1780982806000,-301.68870498,0.00012141,2]
[424507089,1780982928000,-500.0,0.0001369,2]
[424507090,1780982940000,-500.0,0.0001369,2]
[424507091,1780982952000,-500.0,0.0001369,2]
[424507092,1780982965000,-500.0,0.0001369,2]
[424507093,1780982977000,-500.0,0.0001369,2]
[424507094,1780982989000,-500.0,0.0001369,2]
[424507095,1780983001000,-500.0,0.0001369,2]
[424507096,1780983014000,-500.0,0.0001369,2]
[424507168,1780983032000,-300.0,0.00013831,2]
[424507174,1780983032000,-300.0,0.00013831,2]
[424507165,1780983032000,-500.0,0.0001383,2]
[424507167,1780983032000,-300.0,0.00013831,2]
[424507163,1780983032000,-419.18602328,0.0001383,2]
[424507161,1780983032000,-80.81397672,0.0001383,2]
[424507159,1780983032000,-500.0,0.0001383,2]
[424507155,1780983032000,-53.67194284,0.0001383,2]
[424507157,1780983032000,-500.0,0.0001383,2]
[424507144,1780983032000,-500.0,0.0001383,2]
[424507170,1780983032000,-300.0,0.00013831,2]
[424507149,1780983032000,-500.0,0.0001383,2]
[424507151,1780983032000,-254.01712216,0.0001383,2]
[424507142,1780983032000,-389.67780656,0.0001383,2]
[424507148,1780983032000,-500.0,0.0001383,2]
[424507146,1780983032000,-500.0,0.0001383,2]
[424507140,1780983032000,-169.01663615,0.0001383,2]
[424507136,1780983032000,-477.94610916,0.0001383,2]
[424507134,1780983032000,-503.57368582,0.0001383,2]
[424507153,1780983032000,-446.32805716,0.0001383,2]
[424507176,1780983032000,-229.82426153,0.00013831,2]
[424507172,1780983032000,-300.0,0.00013831,2]
[424507181,1780983032000,-300.0,0.00013831,2]
[424507217,1780983032000,-191.393,0.00016338,2]
[424507221,1780983032000,-85176.30497867,0.00016338,2]
[424507219,1780983032000,-2478.83995587,0.00016338,2]
[424507215,1780983032000,-196.65871297,0.00016337,2]
[424507179,1780983032000,-70.17573847,0.00013831,2]
[424507210,1780983032000,-157.25860506,0.00016253,2]
[424507212,1780983032000,-2016.28659841,0.00016253,2]
[424507208,1780983032000,-161.95369461,0.000162,2]
[424507206,1780983032000,-161.95369461,0.000161,2]
[424507202,1780983032000,-155.0,0.00014239,7]
[424507214,1780983032000,-162.48,0.00016264,2]
[424507200,1780983032000,-153.0,0.00014239,7]
[424507204,1780983032000,-720.0,0.00015517,2]
[424507185,1780983032000,-300.0,0.00013831,2]
[424507183,1780983032000,-300.0,0.00013831,2]
[424507187,1780983032000,-300.0,0.00013831,2]
[424507189,1780983032000,-300.0,0.00013831,2]
[424507194,1780983032000,-300.0,0.00013831,2]
[424507198,1780983032000,-600.0,0.00014107,2]
[424507196,1780983032000,-300.0,0.00013831,2]
[424507192,1780983032000,-300.0,0.00013831,2]
[424507191,1780983032000,-300.0,0.00013831,2]
[424507224,1780983034000,647.22600256,0.0001369,2]
[424507223,1780983034000,500.0,0.0001369,2]
[424507279,1780983041000,-11262.86348806,0.00016338,2]
[424507281,1780983041000,-1120.59590779,0.00016338,2]
[424507276,1780983041000,-241664.56208816,0.00016338,2]
[424507273,1780983041000,-6778.79294667,0.00016338,2]
[424507271,1780983041000,-2028.97951315,0.00016338,2]
[424507269,1780983041000,-46588.51305982,0.00016338,2]
[424507561,1780983043000,-13429.38261749,0.00016338,2]
[424507576,1780983043000,-7778.05196821,0.00016338,2]
[424507575,1780983043000,-168.809073,0.00016338,2]
[424507563,1780983043000,-4135.43088264,0.00016338,2]
[424507584,1780983235000,-500.0,0.00012337,7]
[424507585,1780983247000,-224.73122771,0.00012337,7]
[424507590,1780983300000,-374.19017801,0.00012366,7]
[424507591,1780983353000,-500.0,0.00014104,2]
[424507593,1780983366000,-186.78696079,0.00014104,2]
[424507594,1780983419000,-528.22412468,0.00014104,2]
[424507596,1780983472000,-235.39654915,0.00012887,7]
[424507597,1780983526000,-580.17,0.00014104,2]
[424507598,1780983538000,-580.17,0.00014104,2]
[424507599,1780983607000,8208.59,0.00023701,120]
[424507600,1780983769000,-500.0,0.00014103,2]
[424507601,1780983782000,-500.0,0.00014103,2]
[424507602,1780983794000,-500.0,0.00014103,2]
[424507603,1780983806000,-500.0,0.00014103,2]
[424507604,1780983818000,-500.0,0.00014103,2]
[424507605,1780983831000,-500.0,0.00014103,2]
[424507606,1780983843000,-500.0,0.00014104,7]
[424507607,1780983855000,-38.82324345,0.00014104,7]
[424507610,1780983908000,-500.0,0.00014104,2]
[424507611,1780983920000,-500.0,0.00014104,2]
[424507613,1780984068000,-500.0,0.00014103,2]
[424507615,1780984081000,-500.0,0.00014103,2]
[424507618,1780984093000,-500.0,0.00014103,2]
[424507620,1780984105000,-500.0,0.00014104,2]
[424507621,1780984117000,-500.0,0.00014104,2]
[424507622,1780984129000,-500.0,0.00014104,2]
[424507623,1780984142000,-500.0,0.00014104,2]
[424507624,1780984155000,-500.0,0.00014104,2]
[424507626,1780984167000,-500.0,0.00014104,2]
[424507627,1780984179000,-500.0,0.00014104,2]
[424507654,1780984233000,-327.99057547,0.00014104,2]
[424507657,1780984233000,-911.2916441,0.00014104,2]
[424507656,1780984233000,-3230.0960641,0.00014104,2]
[424507659,1780984233000,-253.79742085,0.00014104,2]
[424507658,1780984233000,-3751.52906364,0.00014104,2]
[424507655,1780984233000,-1031.87654538,0.00014104,2]
[424507758,1780984241000,-153.115,0.00016131,2]
[424507769,1780984241000,-500.0,0.00016162,2]
[424507753,1780984241000,-720.0,0.00015826,2]
[424507760,1780984241000,-184.007477,0.00016131,2]
[424507754,1780984241000,-161.95369462,0.000159,2]
[424507767,1780984241000,-500.0,0.00016162,2]
[424507771,1780984241000,-500.0,0.00016162,2]
[424507773,1780984241000,-500.0,0.00016162,2]
[424507764,1780984241000,-500.0,0.00016162,2]
[424507775,1780984241000,-500.0,0.00016162,2]
[424507791,1780984241000,-151.5,0.00016164,2]
[424507793,1780984241000,-151.5,0.00016164,2]
[424507787,1780984241000,-200.32551462,0.00016164,2]
[424507794,1780984241000,-204.93440454,0.00016164,2]
[424507776,1780984241000,-500.0,0.00016162,2]
[424507780,1780984241000,-500.0,0.00016162,2]
[424507783,1780984241000,-615.30377179,0.00016162,2]
[424507782,1780984241000,-500.0,0.00016162,2]
[424507796,1780984241000,-201.85432283,0.00016164,2]
[424507785,1780984241000,-151.5,0.00016164,2]
[424507778,1780984241000,-500.0,0.00016162,2]
[424507800,1780984241000,-201.20753654,0.00016164,2]
[424507824,1780984241000,-500.0,0.00016438,2]
[424507815,1780984241000,-2766.469588,0.00016353,2]
[424507789,1780984241000,-151.5,0.00016164,2]
[424507762,1780984241000,-1764.2507736,0.00016135,2]
[424507724,1780984241000,-300.0,0.00014106,2]
[424507756,1780984241000,-160.0,0.0001592,2]
[424507706,1780984241000,-70.26787397,0.00014104,2]
[424507710,1780984241000,-300.0,0.00014106,2]
[424507712,1780984241000,-300.0,0.00014106,2]
[424507719,1780984241000,-300.0,0.00014106,2]
[424507708,1780984241000,-300.0,0.00014106,2]
[424507718,1780984241000,-300.0,0.00014106,2]
[424507722,1780984241000,-300.0,0.00014106,2]
[424507716,1780984241000,-300.0,0.00014106,2]
[424507721,1780984241000,-300.0,0.00014106,2]
[424507813,1780984241000,-187.75,0.00016338,2]
[424507714,1780984241000,-300.0,0.00014106,2]
[424507726,1780984241000,-300.0,0.00014106,2]
[424507728,1780984241000,-300.0,0.00014106,2]
[424507730,1780984241000,-300.0,0.00014106,2]
[424507740,1780984241000,-802.7301737,0.0001469,2]
[424507741,1780984241000,-168.146128,0.00014699,2]
[424507736,1780984241000,-538.82324345,0.00014386,7]
[424507738,1780984241000,-600.0,0.00014387,2]
[424507747,1780984241000,-154.88,0.00015138,2]
[424507734,1780984241000,-300.0,0.00014106,2]
[424507732,1780984241000,-300.0,0.00014106,2]
[424507745,1780984241000,-199.521122,0.00015068,2]
[424507749,1780984241000,-538.82324345,0.00015232,7]
[424507743,1780984241000,-538.82324345,0.00014809,7]
[424507751,1780984241000,-538.82324345,0.00015796,7]
[424507766,1780984241000,-500.0,0.00016162,2]
[424507816,1780984241000,-500.0,0.00016438,2]
[424507798,1780984241000,-201.0464105,0.00016164,2]
[424507805,1780984241000,-314.51721012,0.00016238,2]
[424507852,1780984241000,-500.0,0.00016438,2]
[424507856,1780984241000,-500.0,0.00016438,2]
[424507860,1780984241000,-500.0,0.00016438,2]
[424507876,1780984241000,-500.0,0.00016438,2]
[424507877,1780984241000,-500.0,0.00016438,2]
[424507894,1780984241000,-500.0,0.00016438,2]
[424507891,1780984241000,-500.0,0.00016438,2]
[424507889,1780984241000,-500.0,0.00016438,2]
[424507881,1780984241000,-500.0,0.00016438,2]
[424507883,1780984241000,-500.0,0.00016438,2]
[424507893,1780984241000,-500.0,0.00016438,2]
[424507887,1780984241000,-500.0,0.00016438,2]
[424507885,1780984241000,-500.0,0.00016438,2]
[424507896,1780984241000,-500.0,0.00016438,2]
[424507879,1780984241000,-500.0,0.00016438,2]
[424507898,1780984241000,-500.0,0.00016438,2]
[424507918,1780984241000,-500.0,0.00016438,2]
[424507914,1780984241000,-500.0,0.00016438,2]
[424507908,1780984241000,-500.0,0.00016438,2]
[424507910,1780984241000,-500.0,0.00016438,2]
[424507906,1780984241000,-500.0,0.00016438,2]
[424507912,1780984241000,-738.73,0.00016438,2]
[424507916,1780984241000,-500.0,0.00016438,2]
[424507919,1780984241000,-500.0,0.00016438,2]
[424507807,1780984241000,-341.1899787,0.00016253,2]
[424507870,1780984241000,-500.0,0.00016438,2]
[424507862,1780984241000,-500.0,0.00016438,2]
[424507921,1780984241000,-500.0,0.00016438,2]
[424507858,1780984241000,-500.0,0.00016438,2]
[424507854,1780984241000,-500.0,0.00016438,2]
[424507809,1780984241000,-1672.9252245,0.00016253,2]
[424507818,1780984241000,-500.0,0.00016438,2]
[424507811,1780984241000,-172.01386502,0.00016319,2]
[424507804,1780984241000,-1364.759915,0.00016235,2]
[424507802,1780984241000,-7439.7851684,0.00016231,2]
[424507820,1780984241000,-500.0,0.00016438,2]
[424507822,1780984241000,-500.0,0.00016438,2]
[424507826,1780984241000,-500.0,0.00016438,2]
[424507830,1780984241000,-500.0,0.00016438,2]
[424507832,1780984241000,-500.0,0.00016438,2]
[424507838,1780984241000,-231.01565609,0.00016438,2]
[424507828,1780984241000,-500.0,0.00016438,2]
[424507836,1780984241000,-1000.0,0.00016438,2]
[424507866,1780984241000,-500.0,0.00016438,2]
[424507834,1780984241000,-500.0,0.00016438,2]
[424507868,1780984241000,-500.0,0.00016438,2]
[424507864,1780984241000,-500.0,0.00016438,2]
[424507872,1780984241000,-500.0,0.00016438,2]
[424507848,1780984241000,-500.0,0.00016438,2]
[424507840,1780984241000,-301.68870498,0.00016438,2]
[424507874,1780984241000,-500.0,0.00016438,2]
[424507850,1780984241000,-500.0,0.00016438,2]
[424507846,1780984241000,-500.0,0.00016438,2]
[424507842,1780984241000,-500.0,0.00016438,2]
[424507844,1780984241000,-500.0,0.00016438,2]
[424508006,1780984242000,-500.0,0.00016438,2]
[424507995,1780984242000,-500.0,0.00016438,2]
[424508008,1780984242000,-500.0,0.00016438,2]
[424507997,1780984242000,-500.0,0.00016438,2]
[424508004,1780984242000,-500.0,0.00016438,2]
[424507991,1780984242000,-500.0,0.00016438,2]
[424507984,1780984242000,-500.0,0.00016438,2]
[424507982,1780984242000,-500.0,0.00016438,2]
[424507986,1780984242000,-678.85,0.00016438,2]
[424508002,1780984242000,-500.0,0.00016438,2]
[424507987,1780984242000,-503.15701207,0.00016438,2]
[424507993,1780984242000,-874.38,0.00016438,2]
[424508000,1780984242000,-500.0,0.00016438,2]
[424508026,1780984242000,-500.0,0.00016438,2]
[424508014,1780984242000,-500.0,0.00016438,2]
[424508010,1780984242000,-500.0,0.00016438,2]
[424508016,1780984242000,-500.0,0.00016438,2]
[424508039,1780984242000,-500.0,0.00016438,2]
[424508018,1780984242000,-500.0,0.00016438,2]
[424508028,1780984242000,-500.0,0.00016438,2]
[424508033,1780984242000,-500.0,0.00016438,2]
[424508030,1780984242000,-500.0,0.00016438,2]
[424508022,1780984242000,-500.0,0.00016438,2]
[424508031,1780984242000,-500.0,0.00016438,2]
[424507989,1780984242000,-500.0,0.00016438,2]
[424508035,1780984242000,-500.0,0.00016438,2]
[424508037,1780984242000,-520.31913254,0.00016438,2]
[424508012,1780984242000,-500.0,0.00016438,2]
[424507980,1780984242000,-500.0,0.00016438,2]
[424507963,1780984242000,-500.0,0.00016438,2]
[424507978,1780984242000,-500.0,0.00016438,2]
[424508024,1780984242000,-500.0,0.00016438,2]
[424507927,1780984242000,-500.0,0.00016438,2]
[424507929,1780984242000,-500.0,0.00016438,2]
[424507923,1780984242000,-500.0,0.00016438,2]
[424507931,1780984242000,-500.0,0.00016438,2]
[424507925,1780984242000,-500.0,0.00016438,2]
[424507938,1780984242000,-500.0,0.00016438,2]
[424507942,1780984242000,-500.0,0.00016438,2]
[424507936,1780984242000,-500.0,0.00016438,2]
[424507933,1780984242000,-243.20928261,0.00016438,2]
[424507940,1780984242000,-243.69698611,0.00016438,2]
[424507935,1780984242000,-500.0,0.00016438,2]
[424507944,1780984242000,-500.0,0.00016438,2]
[424507974,1780984242000,-500.0,0.00016438,2]
[424507957,1780984242000,-500.0,0.00016438,2]
[424507946,1780984242000,-500.0,0.00016438,2]
[424507950,1780984242000,-500.0,0.00016438,2]
[424507952,1780984242000,-500.0,0.00016438,2]
[424507959,1780984242000,-500.0,0.00016438,2]
[424507954,1780984242000,-500.0,0.00016438,2]
[424507948,1780984242000,-500.0,0.00016438,2]
[424507965,1780984242000,-500.0,0.00016438,2]
[424507956,1780984242000,-500.0,0.00016438,2]
[424507969,1780984242000,-500.0,0.00016438,2]
[424507961,1780984242000,-500.0,0.00016438,2]
[424507973,1780984242000,-500.0,0.00016438,2]
[424507976,1780984242000,-500.0,0.00016438,2]
[424507971,1780984242000,-500.0,0.00016438,2]
[424507967,1780984242000,-500.0,0.00016438,2]
[424508020,1780984242000,-500.0,0.00016438,2]
[424508139,1780984242000,-500.0,0.00016438,2]
[424508050,1780984242000,-500.0,0.00016438,2]
[424508107,1780984242000,-500.0,0.00016438,2]
[424508094,1780984242000,-500.0,0.00016438,2]
[424508109,1780984242000,-500.0,0.00016438,2]
[424508111,1780984242000,-500.0,0.00016438,2]
[424508121,1780984242000,-500.0,0.00016438,2]
[424508119,1780984242000,-500.0,0.00016438,2]
[424508118,1780984242000,-500.0,0.00016438,2]
[424508113,1780984242000,-500.0,0.00016438,2]
[424508115,1780984242000,-500.0,0.00016438,2]
[424508123,1780984242000,-500.0,0.00016438,2]
[424508127,1780984242000,-500.0,0.00016438,2]
[424508043,1780984242000,-500.0,0.00016438,2]
[424508129,1780984242000,-500.0,0.00016438,2]
[424508133,1780984242000,-500.0,0.00016438,2]
[424508131,1780984242000,-500.0,0.00016438,2]
[424508135,1780984242000,-491.366394,0.00016438,2]
[424508137,1780984242000,-512.95383888,0.00016438,2]
[424508152,1780984242000,-500.0,0.00016438,2]
[424508149,1780984242000,-500.0,0.00016438,2]
[424508147,1780984242000,-500.0,0.00016438,2]
[424508151,1780984242000,-500.0,0.00016438,2]
[424508154,1780984242000,-500.0,0.00016438,2]
[424508158,1780984242000,-500.0,0.00016438,2]
[424508156,1780984242000,-500.0,0.00016438,2]
[424508142,1780984242000,-500.0,0.00016438,2]
[424508141,1780984242000,-500.0,0.00016438,2]
[424508144,1780984242000,-500.0,0.00016438,2]
[424508096,1780984242000,-238.66759131,0.00016438,2]
[424508098,1780984242000,-500.0,0.00016438,2]
[424508125,1780984242000,-500.0,0.00016438,2]
[424508103,1780984242000,-500.0,0.00016438,2]
[424508105,1780984242000,-500.0,0.00016438,2]
[424508048,1780984242000,-257.76877512,0.00016438,2]
[424508059,1780984242000,-500.0,0.00016438,2]
[424508045,1780984242000,-500.0,0.00016438,2]
[424508047,1780984242000,-579.54,0.00016438,2]
[424508057,1780984242000,-415.67880362,0.00016438,2]
[424508052,1780984242000,-500.0,0.00016438,2]
[424508041,1780984242000,-500.0,0.00016438,2]
[424508056,1780984242000,-1447.42,0.00016438,2]
[424508061,1780984242000,-500.0,0.00016438,2]
[424508065,1780984242000,-151.0,0.00016438,2]
[424508063,1780984242000,-500.0,0.00016438,2]
[424508067,1780984242000,-500.0,0.00016438,2]
[424508069,1780984242000,-500.0,0.00016438,2]
[424508054,1780984242000,-500.0,0.00016438,2]
[424508073,1780984242000,-500.0,0.00016438,2]
[424508071,1780984242000,-500.0,0.00016438,2]
[424508092,1780984242000,-500.0,0.00016438,2]
[424508099,1780984242000,-500.0,0.00016438,2]
[424508089,1780984242000,-500.0,0.00016438,2]
[424508087,1780984242000,-500.0,0.00016438,2]
[424508090,1780984242000,-500.0,0.00016438,2]
[424508101,1780984242000,-500.0,0.00016438,2]
[424508075,1780984242000,-500.0,0.00016438,2]
[424508077,1780984242000,-444.86961384,0.00016438,2]
[424508081,1780984242000,-500.0,0.00016438,2]
[424508083,1780984242000,-500.0,0.00016438,2]
[424508085,1780984242000,-500.0,0.00016438,2]
[424508079,1780984242000,-500.0,0.00016438,2]
[424508252,1780984243000,-500.0,0.00016438,2]
[424508255,1780984243000,-500.0,0.00016438,2]
[424508254,1780984243000,-500.0,0.00016438,2]
[424508240,1780984243000,-500.0,0.00016438,2]
[424508237,1780984243000,-500.0,0.00016438,2]
[424508234,1780984243000,-500.0,0.00016438,2]
[424508231,1780984243000,-500.0,0.00016438,2]
[424508229,1780984243000,-500.0,0.00016438,2]
[424508238,1780984243000,-500.0,0.00016438,2]
[424508225,1780984243000,-500.0,0.00016438,2]